bitfinex-derivatives/quotes_BNBF0:USTF0_20250111
["timestamp","ask_amount","ask_price","bid_price","bid_amount"]
[1736609345459,1.07406972,696.5,695.25,0.2876663]
[1736609346258,1.07406972,696.48,695.25,0.2876663]
[1736609347367,1.50046351,696.77,695.25,0.2876663]
[1736609347368,1.07406972,696.47,695.25,0.2876663]
[1736609349369,1.07406972,696.39,695.25,0.2876663]
[1736609352269,1.07406972,696.4,695.25,0.2876663]
[1736609354167,1.07406972,696.37,695.25,0.2876663]
[1736609355073,1.07406972,696.38,695.25,0.2876663]
[1736609355871,0.88897797,696.76,695.25,0.2876663]
[1736609355872,1.07406972,696.33,695.25,0.2876663]
[1736609356872,1.07406972,696.34,695.25,0.2876663]
[1736609358574,1.07406972,696.35,695.25,0.2876663]
[1736609360575,1.07406972,696.37,695.25,0.2876663]
[1736609364479,1.07406972,696.38,695.25,0.2876663]
[1736609365281,1.07406972,696.37,695.25,0.2876663]
[1736609367382,1.07406972,696.36,695.25,0.2876663]
[1736609369185,1.07406972,696.35,695.25,0.2876663]
[1736609370887,1.07406972,696.37,695.25,0.2876663]
[1736609372882,1.07406972,696.36,695.25,0.2876663]
[1736609373583,1.07406972,696.41,695.25,0.2876663]
[1736609374689,1.07406972,696.4,695.25,0.2876663]
[1736609375592,1.07406972,696.38,695.25,0.2876663]
[1736609376692,1.07406972,696.39,695.25,0.2876663]
[1736609377591,1.07406972,696.38,695.25,0.2876663]
[1736609378495,1.07406972,696.37,695.25,0.2876663]
[1736609379195,1.07406972,696.36,695.25,0.2876663]
[1736609380193,1.07406972,696.32,695.25,0.2876663]
[1736609381499,1.07406972,696.33,695.25,0.2876663]
[1736609382499,1.07406972,696.32,695.25,0.2876663]
[1736609383298,1.07406972,696.26,695.25,0.2876663]
[1736609385002,1.07406972,696.25,695.25,0.2876663]
[1736609389605,1.07406972,696.24,695.25,0.2876663]
[1736609392708,1.07406972,696.25,695.25,0.2876663]
[1736609394011,1.07406972,696.43,695.25,0.2876663]
[1736609394012,1.07406972,696.27,695.25,0.2876663]
[1736609394709,1.07406972,696.28,695.25,0.2876663]
[1736609395910,1.07406972,696.35,695.25,0.2876663]
[1736609396611,1.07406972,696.36,695.25,0.2876663]
[1736609398606,1.07406972,696.37,695.25,0.2876663]
[1736609400914,1.07406972,696.34,695.25,0.2876663]
[1736609401214,1.07406972,696.34,694.9,3.21307029]
[1736609401715,1.07406972,696.39,694.88,3.21307029]
[1736609402616,1.07406972,696.38,694.88,3.21307029]
[1736609403517,1.07406972,696.36,694.88,3.21307029]
[1736609404015,1.07406972,696.36,694.8,3.21307029]
[1736609404614,1.07406972,696.36,694.78,3.21307029]
[1736609404811,1.07406972,696.33,694.78,3.21307029]
[1736609405916,1.07406972,696.28,694.78,3.21307029]
[1736609406413,1.07406972,696.28,694.75,3.21307029]
[1736609406607,0.88897797,696.68,694.75,3.21307029]
[1736609406608,1.07406972,696.3,694.75,3.21307029]
[1736609407714,1.07406972,696.26,694.87,1.29076613]
[1736609408318,1.07406972,696.26,694.86,1.29076613]
[1736609409515,1.07406972,696.26,694.8,3.21307029]
[1736609409516,1.07406972,696.3,694.88,1.29076613]
[1736609410318,1.07406972,696.29,694.87,1.29076613]
[1736609411120,1.07406972,696.43,694.82,3.21307029]
[1736609412023,1.07406972,696.43,694.56,3.21307029]
[1736609413220,1.07406972,696.43,694.54,3.124368]
[1736609413221,1.07406972,696.43,694.55,3.21307029]
[1736609414522,1.07406972,696.43,694.56,1.29076613]
[1736609415621,1.07406972,696.42,694.55,4.50383642]
[1736609416519,1.07406972,696.43,694.56,3.124368]
[1736609416717,1.07406972,696.43,694.56,6.33743829]
[1736609416918,1.07406972,696.43,694.57,3.21307029]
[1736609417323,1.07406972,696.44,694.57,3.21307029]
[1736609417921,1.07406972,696.44,694.57,6.33743829]
[1736609418119,1.07406972,696.44,694.58,3.21307029]
[1736609419823,0.2640907,696.43,694.59,3.21307029]
[1736609420027,0.26409067,696.42,694.6,3.21307029]
[1736609420231,0.26409067,696.41,694.61,3.21307029]
[1736609420424,0.26409067,696.4,694.62,2.01404493]
[1736609420628,0.26409067,696.39,694.63,2.01404493]
[1736609420824,1.07406972,696.44,694.6,2.01404493]
[1736609421024,1.50063065,696.69,694.89,1.29076613]
[1736609421025,1.07406972,696.3,694.89,1.29076613]
[1736609421829,1.07406972,696.32,694.91,1.29076613]
[1736609422528,1.07406972,696.33,695.0,1.29076613]
[1736609423526,1.07406972,696.37,695.02,0.2877615]
[1736609424432,1.07406972,696.43,695.02,0.2877615]
[1736609425832,1.07406972,696.45,695.02,0.2877615]
[1736609426132,0.26405399,696.44,695.02,0.2877615]
[1736609426931,1.07406972,696.38,695.05,1.29076613]
[1736609427932,1.07406972,696.39,695.05,1.29076613]
[1736609429132,1.07406972,696.37,695.07,0.2877408]
[1736609430336,1.07406972,696.42,695.07,1.57850693]
[1736609431137,1.07406972,696.42,695.07,0.2877408]
[1736609434335,0.8886645,696.76,695.07,0.2877408]
[1736609434336,1.07406972,696.44,695.07,0.2877408]
[1736609435432,1.07406972,696.51,695.07,0.2877408]
[1736609435833,1.07406972,696.51,695.07,3.50081109]
[1736609436040,1.07406972,696.53,695.07,3.50081109]
[1736609436940,1.07406972,696.65,695.07,3.50081109]
[1736609437141,1.07406972,696.65,695.07,0.2877408]
[1736609437741,1.07406972,696.66,695.07,0.2877408]
[1736609438344,0.26400516,696.65,695.07,0.2877408]
[1736609438838,0.26400516,696.64,695.07,0.2877408]
[1736609439040,1.07406972,696.68,695.07,0.2877408]
[1736609439242,0.26400398,696.67,695.07,0.2877408]
[1736609439646,1.3380737,696.67,695.07,0.2877408]
[1736609439842,0.26400398,696.66,695.07,0.2877408]
[1736609440538,1.07406972,696.63,695.07,0.2877408]
[1736609440744,0.26400398,696.62,695.07,0.2877408]
[1736609441244,1.07406972,696.6,695.07,0.2877408]
[1736609441444,0.26400398,696.59,695.07,0.2877408]
[1736609441738,1.07406972,696.6,695.07,0.2877408]
[1736609441946,0.26402539,696.59,695.07,0.2877408]
[1736609443544,0.26402539,696.58,695.07,0.2877408]
[1736609443744,0.26402539,696.57,695.07,0.2877408]
[1736609443946,0.26402539,696.56,695.07,0.2877408]
[1736609444147,0.26402539,696.55,695.07,0.2877408]
[1736609444346,0.26402539,696.54,695.07,0.2877408]
[1736609444546,0.26403047,696.53,695.07,0.2877408]
[1736609444740,1.07406972,696.59,695.07,0.2877408]
[1736609444947,0.26403031,696.58,695.07,0.2877408]
[1736609445245,1.07406972,696.56,695.07,0.2877408]
[1736609445445,0.26403031,696.55,695.07,0.2877408]
[1736609445946,1.07406972,696.56,695.07,0.2877408]
[1736609446142,0.26403076,696.55,695.07,0.2877408]
[1736609447147,1.07406972,696.57,695.07,0.2877408]
[1736609447148,0.26403076,696.54,695.07,0.2877408]
[1736609447347,0.26404076,696.53,695.07,0.2877408]
[1736609447651,0.26404076,696.52,695.07,0.2877408]
[1736609447850,1.07406972,696.56,695.07,0.2877408]
[1736609448044,0.26403794,696.55,695.07,0.2877408]
[1736609449050,1.07406972,696.53,695.07,0.2877408]
[1736609449250,0.26403794,696.52,695.07,0.2877408]
[1736609450045,1.07406972,696.49,695.07,0.2877408]
[1736609450249,0.26403794,696.48,695.07,0.2877408]
[1736609450644,0.26405613,696.47,695.07,0.2877408]
[1736609450849,1.07406972,696.47,695.07,0.2877408]
[1736609451550,1.07406972,696.46,695.07,0.2877408]
[1736609454857,1.07406972,696.51,695.07,0.2877408]
[1736609455852,1.07406972,696.49,695.07,0.2877408]
[1736609456658,1.07406972,696.5,695.07,0.2877408]
[1736609457760,1.07406972,696.51,695.07,0.2877408]
[1736609458862,1.07406972,696.5,695.07,0.2877408]
[1736609459863,1.07406972,696.49,695.07,0.2877408]
[1736609460867,1.07406972,696.48,695.07,0.2877408]
[1736609462066,0.26410098,696.47,695.07,0.2877408]
[1736609462569,1.07406972,696.31,695.07,0.2877408]
[1736609463364,1.07406972,696.3,695.07,0.2877408]
[1736609464471,1.07406972,696.31,695.07,0.2877408]
[1736609465072,1.07406972,696.35,695.07,0.2877408]
[1736609465969,1.07406972,696.39,695.07,0.2877408]
[1736609466978,1.07406972,696.42,695.07,0.2877408]
[1736609467679,0.26410726,696.41,695.07,0.2877408]
[1736609467876,1.07406972,696.42,695.07,0.2877408]
[1736609468078,1.50075469,696.65,695.07,0.2877408]
[1736609468079,1.07406972,696.44,695.07,0.2877408]
[1736609468280,0.26409982,696.43,695.07,0.2877408]
[1736609469280,1.07406972,696.46,695.07,0.2877408]
[1736609469481,0.26409973,696.45,695.07,0.2877408]
[1736609470681,1.07406972,696.44,695.07,0.2877408]
[1736609470878,0.26409973,696.43,695.07,0.2877408]
[1736609471080,0.26410261,696.42,695.07,0.2877408]
[1736609471381,0.26410261,696.41,695.07,0.2877408]
[1736609471681,0.26410261,696.4,695.07,0.2877408]
[1736609471881,1.07406972,696.44,695.07,0.2877408]
[1736609472080,0.26410622,696.43,695.07,0.2877408]
[1736609472482,1.33817594,696.43,695.07,0.2877408]
[1736609472685,0.26410622,696.42,695.07,0.2877408]
[1736609473584,1.33817594,696.42,695.07,0.2877408]
[1736609473784,0.26410697,696.41,695.07,0.2877408]
[1736609474383,1.07406972,696.4,695.07,0.2877408]
[1736609474583,0.26410697,696.39,695.07,0.2877408]
[1736609475286,1.07406972,696.36,695.07,0.2877408]
[1736609475585,0.26409938,696.35,695.07,0.2877408]
[1736609476288,1.07406972,696.36,695.07,0.2877408]
[1736609477085,1.07406972,696.43,695.07,0.2877408]
[1736609477681,0.26407363,696.42,695.07,0.2877408]
[1736609478388,0.26407363,696.41,695.07,0.2877408]
[1736609478587,0.26407363,696.4,695.07,0.2877408]
[1736609478787,1.07406972,696.45,695.07,0.2877408]
[1736609478988,0.26407143,696.44,695.07,0.2877408]
[1736609479288,1.07406972,696.4,695.07,0.2877408]
[1736609480283,1.07406972,696.58,695.07,0.2877408]
[1736609480284,1.33814385,696.39,695.07,0.2877408]
[1736609480487,1.07406972,696.39,695.07,0.2877408]
[1736609481390,1.07406972,696.38,695.07,0.2877408]
[1736609482391,1.07406972,696.43,695.07,0.2877408]
[1736609483292,1.07406972,696.44,695.07,0.2877408]
[1736609486490,1.07406972,696.63,695.07,0.2877408]
[1736609486491,1.07406972,696.45,695.07,0.2877408]
[1736609488594,1.5002425,696.94,695.07,0.2877408]
[1736609488595,1.07406972,696.5,695.07,0.2877408]
[1736609489097,2.02797345,696.93,695.07,0.2877408]
[1736609489098,1.07406972,696.59,695.08,1.29076613]
[1736609489298,0.2640032,696.58,695.1,0.28772838]
[1736609489998,1.07406972,696.59,695.1,0.28772838]
[1736609490199,0.26400714,696.58,695.1,0.28772838]
[1736609491097,0.26400714,696.57,695.1,0.28772838]
[1736609491300,1.07406972,696.61,695.1,0.28772838]
[1736609491496,0.26400355,696.6,695.1,0.28772838]
[1736609492301,0.26400355,696.59,695.1,0.28772838]
[1736609492601,0.26400355,696.58,695.1,0.28772838]
[1736609492795,0.2640128,696.57,695.1,0.28772838]
[1736609493001,0.2640128,696.56,695.1,0.28772838]
[1736609493195,1.07406972,696.64,695.1,0.28772838]
[1736609493399,0.264007,696.63,695.1,0.28772838]
[1736609493699,0.264007,696.62,695.1,0.28772838]
[1736609493901,0.264007,696.61,695.1,0.28772838]
[1736609494100,0.264007,696.6,695.1,0.28772838]
[1736609494301,0.264007,696.59,695.1,0.28772838]
[1736609494502,0.264007,696.58,695.1,0.28772838]
[1736609494705,0.264007,696.57,695.1,0.28772838]
[1736609494901,0.264007,696.56,695.1,0.28772838]
[1736609495102,1.0719216,696.65,695.1,0.28772838]
[1736609495302,0.2640082,696.64,695.1,0.28772838]
[1736609495504,0.2640105,696.63,695.1,0.28772838]
[1736609495705,0.2640105,696.62,695.1,0.28772838]
[1736609495907,0.2640105,696.61,695.1,0.28772838]
[1736609496113,1.0719216,696.66,695.1,0.28772838]
[1736609496312,0.2640073,696.65,695.1,0.28772838]
[1736609497712,0.2640073,696.64,695.1,0.28772838]
[1736609497914,0.2640073,696.63,695.1,0.28772838]
[1736609498211,1.0719216,696.66,695.1,0.28772838]
[1736609498517,0.26402218,696.65,695.1,0.28772838]
[1736609499107,1.0719216,696.62,695.1,0.28772838]
[1736609499411,0.26402218,696.61,695.1,0.28772838]
[1736609500615,1.0719216,696.59,695.1,0.28772838]
[1736609500914,0.26403923,696.58,695.1,0.28772838]
[1736609501511,1.0719216,696.57,695.1,0.28772838]
[1736609501713,0.26403923,696.56,695.1,0.28772838]
[1736609502917,0.26403923,696.55,695.1,0.28772838]
[1736609503111,0.26403923,696.54,695.1,0.28772838]
[1736609503316,0.26403923,696.53,695.1,0.28772838]
[1736609503617,0.26403698,696.52,695.1,0.28772838]
[1736609503812,0.26403698,696.51,695.1,0.28772838]
[1736609504014,0.26403698,696.5,695.1,0.28772838]
[1736609504213,0.26403698,696.49,695.1,0.28772838]
[1736609504414,1.0719216,696.56,695.1,0.28772838]
[1736609504715,0.26403673,696.55,695.1,0.28772838]
[1736609506418,0.26403344,696.54,695.1,0.28772838]
[1736609506619,0.26403344,696.53,695.1,0.28772838]
[1736609506924,1.0719216,696.56,695.1,0.28772838]
[1736609508323,1.0719216,696.58,695.1,0.28772838]
[1736609509323,1.0719216,696.65,695.1,0.28772838]
[1736609510225,1.0719216,696.64,695.1,0.28772838]
[1736609511224,1.0719216,696.63,695.1,0.28772838]
[1736609511828,1.50022094,696.85,695.1,0.28772838]
[1736609511829,1.0719216,696.61,695.1,0.28772838]
[1736609514331,1.0719216,696.59,695.1,0.28772838]
[1736609514931,1.0719216,696.58,695.1,0.28772838]
[1736609515931,1.0719216,696.62,695.1,0.28772838]
[1736609516530,1.0719216,696.6,695.1,0.28772838]
[1736609518628,0.26400591,696.59,695.1,0.28772838]
[1736609519335,1.0719216,696.46,695.19,1.28753916]
[1736609520129,1.0719216,696.46,695.21,0.28768285]
[1736609520332,1.0719216,696.47,695.21,0.28768285]
[1736609521236,1.0719216,696.49,695.21,0.28768285]
[1736609522036,1.0719216,696.48,695.21,0.28768285]
[1736609523338,1.0719216,696.49,695.21,0.28768285]
[1736609525136,0.88937801,696.91,695.21,0.28768285]
[1736609525137,1.0719216,696.5,695.21,1.57522201]
[1736609525636,1.0719216,696.49,695.21,1.57522201]
[1736609526335,1.0719216,696.5,695.21,1.57522201]
[1736609527438,1.0719216,696.5,695.22,1.28753916]
[1736609527639,1.0719216,696.5,695.24,0.28767044]
[1736609528433,1.0719216,696.49,695.24,0.28767044]
[1736609530042,1.0719216,696.5,695.24,0.28767044]
[1736609532544,1.0719216,696.49,695.24,0.28767044]
[1736609533543,1.28630592,696.91,695.24,0.28767044]
[1736609533544,1.0719216,696.53,695.24,0.28767044]
[1736609534746,1.0719216,696.54,695.24,0.28767044]
[1736609535545,1.0719216,696.53,695.24,0.28767044]
[1736609536543,1.0719216,696.54,695.24,0.28767044]
[1736609537344,0.88937801,696.91,695.24,0.28767044]
[1736609537345,1.0719216,696.52,695.24,0.28767044]
[1736609539148,1.0719216,696.51,695.24,0.28767044]
[1736609540049,1.0719216,696.52,695.24,0.28767044]
[1736609542146,1.0719216,696.51,695.24,0.28767044]
[1736609542550,0.88937801,696.91,695.24,0.28767044]
[1736609542852,0.26400251,696.9,695.24,0.28767044]
[1736609543054,0.26400251,696.89,695.24,0.28767044]
[1736609543351,0.26400251,696.88,695.24,0.28767044]
[1736609543549,0.26400251,696.87,695.24,0.28767044]
[1736609543750,0.26400251,696.86,695.24,0.28767044]
[1736609543950,1.07498608,696.47,695.24,1.57940461]
[1736609544851,1.07498608,696.47,695.25,1.29173417]
[1736609545650,1.07498608,696.46,695.26,1.29173417]
[1736609546654,1.07498608,696.46,695.25,1.29173417]
[1736609547654,1.07498608,696.46,695.24,0.28767044]
[1736609547655,1.07498608,696.39,695.24,0.28767044]
[1736609548451,1.07498608,696.38,695.24,0.28767044]
[1736609550359,1.07498608,696.39,695.24,0.28767044]
[1736609551259,1.07498608,696.4,695.24,0.28767044]
[1736609552260,1.07498608,696.36,695.24,0.28767044]
[1736609553359,1.07498608,696.55,695.24,0.28767044]
[1736609553360,1.07498608,696.37,695.24,0.28767044]
[1736609554262,1.07498608,696.61,695.24,0.28767044]
[1736609555367,1.07498608,696.63,695.24,0.28767044]
[1736609556264,1.07498608,696.94,695.24,0.28767044]
[1736609556265,1.07498608,696.62,695.24,0.28767044]
[1736609557268,1.07498608,696.66,695.24,0.28767044]
[1736609557769,0.73861351,697.37,695.24,0.28767044]
[1736609557962,0.55106174,696.82,695.24,0.28767044]
[1736609558165,0.55106586,696.81,695.24,0.28767044]
[1736609558368,0.55106998,696.8,695.24,0.28767044]
[1736609558567,0.5510741,696.79,695.24,0.28767044]
[1736609558768,0.26404358,696.78,695.24,0.28767044]
[1736609558970,0.55107822,696.78,695.24,0.28767044]
[1736609559270,0.28703464,696.78,695.24,0.28767044]
[1736609559769,0.26404939,696.77,695.24,0.28767044]
[1736609559981,0.28703464,696.78,695.24,0.28767044]
[1736609560366,1.07327387,696.68,695.24,0.28767044]
[1736609561571,1.07327387,696.67,695.24,0.28767044]
[1736609562366,1.07327387,696.69,695.24,0.28767044]
[1736609562766,0.28703464,696.78,695.24,0.28767044]
[1736609563272,0.26404353,696.77,695.24,0.28767044]
[1736609563875,1.07302416,696.69,695.24,0.28767044]
[1736609564168,0.26404353,696.77,695.24,0.28767044]
[1736609564169,0.26404353,696.68,695.24,0.28767044]
[1736609564373,0.26404353,696.67,695.24,0.28767044]
[1736609564572,0.26404353,696.66,695.24,0.28767044]
[1736609564771,0.28703464,696.78,695.24,0.28767044]
[1736609564772,1.07296582,696.5,695.24,0.28767044]
[1736609565570,0.28703464,696.78,695.24,0.28767044]
[1736609565768,0.26404487,696.77,695.24,0.28767044]
[1736609566471,1.07289085,696.51,695.24,0.28767044]
[1736609566769,0.88766118,696.77,695.24,0.28767044]
[1736609567074,0.26404534,696.76,695.24,0.28767044]
[1736609567673,1.07289003,696.51,695.24,0.28767044]
[1736609567868,0.88766118,696.77,695.24,0.28767044]
[1736609568069,0.26404552,696.76,695.24,0.28767044]
[1736609568575,1.07286681,696.5,695.24,0.28767044]
[1736609570475,0.26403957,696.49,695.24,0.28767044]
[1736609570775,1.07286681,696.51,695.24,0.28767044]
[1736609570976,0.26403975,696.5,695.24,0.28767044]
[1736609571876,1.07286681,696.51,695.24,0.28767044]
[1736609572072,1.07286681,696.47,695.24,0.28767044]
[1736609572972,1.07286681,696.46,695.24,0.28767044]
[1736609574580,1.07286681,696.45,695.04,1.28968421]
[1736609575280,0.88794655,696.77,694.96,3.21840338]
[1736609575281,1.07286681,696.44,695.05,1.28968421]
[1736609575980,1.07286681,696.43,695.06,1.28968421]
[1736609577077,1.07286681,696.42,695.07,1.28968421]
[1736609577975,1.07286681,696.41,695.06,1.28968421]
[1736609579283,1.07286681,696.41,695.08,1.28968421]
[1736609583988,1.07286681,696.41,695.08,4.50808759]
[1736609584489,1.07286681,696.41,695.09,3.12707275]
[1736609584686,1.07286681,696.41,695.09,6.34547613]
[1736609584984,1.07286681,696.44,695.1,3.21840338]
[1736609585184,0.88794655,696.82,695.1,3.21840338]
[1736609585383,0.88794655,696.82,695.1,2.01744344]
[1736609585585,0.26406035,696.81,695.1,2.01744344]
[1736609585985,0.26406035,696.81,695.09,3.12707275]
[1736609586285,1.07467702,696.45,695.09,3.12707275]
[1736609586589,1.07467702,696.45,694.8,3.21916249]
[1736609586791,1.07467702,696.45,694.8,2.01744344]
[1736609586990,1.07467702,696.45,694.79,1.29197387]
[1736609587593,1.07467702,696.44,694.78,1.29197387]
[1736609589194,1.07467702,696.45,694.78,1.29197387]
[1736609592202,1.07467702,696.43,694.9,1.29197387]
[1736609592898,1.07467702,696.44,694.91,1.29197387]
[1736609593700,1.07467702,696.41,694.97,1.29197387]
[1736609594894,1.07467702,696.43,694.96,1.29197387]
[1736609595901,1.07467702,696.36,695.11,1.29197387]
[1736609597702,1.07467702,696.35,695.11,1.29197387]
[1736609598603,1.07467702,696.37,695.06,1.29197387]
[1736609599604,1.07467702,696.37,695.02,3.21916249]
[1736609599605,1.07467702,696.37,695.07,1.29197387]
[1736609600603,1.07467702,696.38,695.08,1.29197387]
[1736609601308,1.07467702,696.39,695.09,1.29197387]
[1736609602306,1.07467702,696.38,695.09,1.29197387]
[1736609603110,0.88794655,696.82,695.09,1.29197387]
[1736609603111,1.07467702,696.36,695.09,1.29197387]
[1736609604813,1.07467702,696.36,695.09,4.41904662]
[1736609605010,1.07467702,696.36,695.12,1.29197387]
[1736609605215,1.07467702,696.36,695.14,0.28771182]
[1736609605913,1.07467702,696.35,695.14,0.28771182]
[1736609608215,1.07467702,696.34,695.14,1.57968569]
[1736609608714,1.07467702,696.34,695.14,2.78140474]
[1736609609114,1.07467702,696.33,695.14,2.78140474]
[1736609609607,1.07467702,696.33,695.14,5.90847749]
[1736609609808,1.07467702,696.33,695.15,3.21916249]
[1736609610113,1.07467702,696.33,695.16,0.28770355]
[1736609610814,1.07467702,696.33,695.16,1.4894226]
[1736609611209,1.07467702,696.33,695.16,3.50686604]
[1736609611614,1.07467702,696.34,695.16,3.50686604]
[1736609612408,1.07467702,696.34,695.16,6.63393879]
[1736609612613,1.07467702,696.34,695.17,3.21916249]
[1736609612814,1.07467702,696.34,695.18,0.28769527]
[1736609614015,1.07467702,696.34,695.18,3.50685776]
[1736609614915,1.07467702,696.35,695.18,3.50685776]
[1736609617219,1.07467702,696.44,695.18,3.50685776]
[1736609617618,1.07467702,696.44,695.18,0.28769527]
[1736609618020,1.07467702,696.48,695.18,0.28769527]
[1736609618916,1.07467702,696.5,695.18,0.28769527]
[1736609619823,1.07467702,696.49,695.18,0.28769527]
[1736609620923,1.07467702,696.5,695.18,0.28769527]
[1736609624026,1.07467702,696.51,695.18,0.28769527]
[1736609625023,1.07467702,696.49,695.18,0.28769527]
[1736609626820,1.07467702,696.45,695.19,1.29197387]
[1736609627020,1.07467702,696.45,695.21,0.28768285]
[1736609628127,1.28961242,696.88,695.21,0.28768285]
[1736609628128,1.07467702,696.73,695.21,0.28768285]
[1736609629225,1.07467702,696.75,695.21,0.28768285]
[1736609629820,1.07467702,696.76,695.21,0.28768285]
[1736609631524,1.07467702,696.75,695.21,0.28768285]
[1736609632428,1.07467702,696.76,695.21,0.28768285]
[1736609634124,1.07467702,696.78,695.21,0.28768285]
[1736609636827,1.33868237,696.77,695.21,0.28768285]
[1736609637028,0.26400535,696.76,695.21,0.28768285]
[1736609637732,0.26400756,696.75,695.21,0.28768285]
[1736609637933,0.26400756,696.74,695.21,0.28768285]
[1736609638129,1.07467702,696.59,695.21,0.28768285]
[1736609639435,1.07467702,696.57,695.21,0.28768285]
[1736609640535,1.07467702,696.58,695.21,0.28768285]
[1736609641637,1.07467702,696.57,695.21,0.28768285]
[1736609642831,1.07467702,696.55,695.21,0.28768285]
[1736609643837,0.888922,696.92,695.21,0.28768285]
[1736609644040,0.26399742,696.91,695.21,0.28768285]
[1736609644233,0.26399742,696.9,695.21,0.28768285]
[1736609644436,0.888922,696.92,695.21,0.28768285]
[1736609644437,0.26399742,696.89,695.21,0.28768285]
[1736609644642,1.07471216,696.51,695.21,0.28768285]
[1736609645744,1.07471216,696.5,695.21,0.28768285]
[1736609646343,1.07471216,696.51,695.22,1.29061516]
[1736609646539,1.07471216,696.51,695.24,0.28767044]
[1736609647145,1.07471216,696.5,695.24,0.28767044]
[1736609648146,1.07471216,696.54,695.24,0.28767044]
[1736609650145,1.07471216,696.52,695.24,1.5782856]
[1736609651342,1.07471216,696.71,695.24,1.5782856]
[1736609651343,1.07471216,696.53,695.24,0.28767044]
[1736609652846,1.07471216,696.52,695.24,0.28767044]
[1736609653943,1.07471216,696.53,695.24,0.28767044]
[1736609654146,1.07471216,696.53,695.24,1.48993006]
[1736609654945,1.07471216,696.53,695.24,0.28767044]
[1736609655450,1.07471216,696.53,695.24,3.50707507]
[1736609655651,1.07471216,696.54,695.24,3.50707507]
[1736609657051,1.07471216,696.54,695.24,0.28767044]
[1736609658951,1.5,697.05,695.24,0.28767044]
[1736609658952,1.07471216,696.65,695.24,0.28767044]
[1736609660055,1.07471216,696.64,695.24,0.28767044]
[1736609661853,1.07471216,696.6,695.24,0.28767044]
[1736609662951,1.07471216,696.61,695.24,0.28767044]
[1736609663856,1.07471216,696.62,695.24,0.28767044]
[1736609665755,1.07471216,696.6,695.24,0.28767044]
[1736609666655,1.07471216,696.59,695.24,0.28767044]
[1736609667651,1.07471216,696.52,695.24,0.28767044]
[1736609668456,1.07471216,696.53,695.24,0.28767044]
[1736609669154,1.07471216,696.42,695.24,0.28767044]
[1736609670159,1.07471216,696.43,695.24,0.28767044]
[1736609671463,1.07471216,696.45,695.24,0.28767044]
[1736609672065,1.07471216,696.46,695.24,0.28767044]
[1736609673162,0.88998878,696.86,695.24,0.28767044]
[1736609673163,1.07471216,696.47,695.24,0.28767044]
[1736609676466,1.07471216,696.48,695.24,0.28767044]
[1736609678161,0.26405738,696.47,695.24,0.28767044]
[1736609678363,1.33876954,696.47,695.24,0.28767044]
[1736609678668,0.26405738,696.46,695.24,0.28767044]
[1736609679467,1.07471216,696.45,695.24,0.28767044]
[1736609680163,1.07471216,696.46,695.24,0.28767044]
[1736609680366,0.26406688,696.45,695.24,0.28767044]
[1736609680767,0.26406703,696.44,695.24,0.28767044]
[1736609681067,1.07471216,696.47,695.24,0.28767044]
[1736609681268,0.26406707,696.46,695.24,0.28767044]
[1736609682968,0.26406707,696.45,695.24,0.28767044]
[1736609683165,0.26406707,696.44,695.24,0.28767044]
[1736609683371,1.07471216,696.48,695.24,0.28767044]
[1736609683571,0.26406401,696.43,695.24,0.28767044]
[1736609684070,0.26406401,696.42,695.24,0.28767044]
[1736609684270,1.07471216,696.48,695.24,0.28767044]
[1736609684466,0.2640618,696.47,695.24,0.28767044]
[1736609685172,0.2640618,696.46,695.24,0.28767044]
[1736609685372,0.2640618,696.45,695.24,0.28767044]
[1736609685569,0.2640618,696.44,695.24,0.28767044]
[1736609685769,0.2640618,696.43,695.24,0.28767044]
[1736609685965,1.07471216,696.48,695.24,0.28767044]
[1736609686271,0.26406607,696.47,695.24,0.28767044]
[1736609686969,0.26406607,696.46,695.24,0.28767044]
[1736609687170,0.26406607,696.45,695.24,0.28767044]
[1736609687471,0.26406607,696.44,695.24,0.28767044]
[1736609687771,0.26406607,696.43,695.24,0.28767044]
[1736609687971,0.26406607,696.42,695.24,0.28767044]
[1736609688171,0.26406607,696.41,695.24,0.28767044]
[1736609688471,1.07471216,696.47,695.24,0.28767044]
[1736609688472,0.26406607,696.4,695.24,0.28767044]
[1736609688671,0.26406607,696.39,695.24,0.28767044]
[1736609688966,1.07471216,696.66,695.24,0.28767044]
[1736609688967,1.07471216,696.46,695.24,0.28767044]
[1736609689170,0.26408841,696.45,695.24,0.28767044]
[1736609690169,0.26408841,696.46,695.24,0.28767044]
[1736609690471,0.26408841,696.45,695.24,0.28767044]
[1736609690667,0.26408841,696.44,695.24,0.28767044]
[1736609690973,0.26408841,696.43,695.24,0.28767044]
[1736609691173,0.26408841,696.42,695.24,0.28767044]
[1736609691374,0.26408841,696.41,695.24,0.28767044]
[1736609691571,1.07471216,696.47,695.24,0.28767044]
[1736609691874,0.2640912,696.46,695.24,0.28767044]
[1736609692876,1.07471216,696.43,695.24,0.28767044]
[1736609693069,0.2640912,696.42,695.24,0.28767044]
[1736609693374,0.26409545,696.41,695.24,0.28767044]
[1736609693669,0.26409545,696.4,695.24,0.28767044]
[1736609693876,0.26409545,696.39,695.24,0.28767044]
[1736609694075,1.07471216,696.46,695.24,0.28767044]
[1736609694276,0.26409669,696.45,695.24,0.28767044]
[1736609694468,0.26409911,696.44,695.24,0.28767044]
[1736609694673,0.26409911,696.43,695.24,0.28767044]